Cogmind - Beta 16 @@@ ROGUE MODE // 2025.10.29 @ 13:26:04 Player: Petvaria Result: Destroyed by JO-70J(R) with Subdweller Beam Cannon Performance ------------- Evolutions (0) 0 Regions Visited (2) 400 Robots Destroyed (28) 140 Value Destroyed (585) 585 Prototype IDs (0) 0 Alien Tech Used (0) 0 Bonus (0) 0 TOTAL SCORE: 1125 Bonus ------- None Cogmind --------- Core Integrity 0/250 Matter 227/300 Energy 95/125 System Corruption 0% Temperature Cool (49) Movement Treading (240) Ox1 Location -10/Subcaves Parts ------- > --- POWER (1) -------- Light Ion Engine > --- PROPULSION (2) --- Light Treads > --- UTILITY (2) ------ Large Storage Unit > --- WEAPON (2) ------- Medium Laser Subdweller Laser > --- INVENTORY (15) --- Wheel Wheel Subdweller Monowheel Medium Storage Unit Seismic Detector Light Armor Plating EM Pulse Gun Beam Cannon Light Assault Rifle Subdweller Machine Gun Battle Cannon Multitool Peak State ------------ > --- POWER ------------ Light Ion Engine > --- PROPULSION ------- Light Treads Light Treads > --- UTILITY ---------- Large Storage Unit Seismic Detector > --- WEAPON ----------- Medium Laser Battle Cannon > --- INVENTORY -------- Light Treads Wheel Wheel Subdweller Monowheel Medium Storage Unit Light Armor Plating Light Armor Plating EM Pulse Gun Beam Cannon Light Assault Rifle Subdweller Machine Gun Multitool [Rating: 9] Favorites ----------- Power Ion Engine Engine Ion Engine Propulsion Light Treads Treads Light Treads Wheel Wheel Utility Large Storage Unit Device Seismic Detector Storage Large Storage Unit Protection Light Armor Plating Weapon Medium Laser Energy Gun Medium Laser Energy Cannon Beam Cannon Ballistic Gun Light Assault Rifle Ballistic Cannon Battle Cannon Build | -11 -10 -10 ------- Run | Yrd Mat Sub Slots Evolved . | . . . Power . | . . . Propulsion . | . . . Utility . | . . . Weapon . | . . . Parts Attached 18 | 7 3 8 Power 2 | 1 . 1 Engine 2 | 1 . 1 Core . | . . . Reactor . | . . . Propulsion 5 | 3 . 2 Treads 4 | 2 . 2 Leg . | . . . Wheel 1 | 1 . . Hover . | . . . Flight . | . . . Utility 6 | 1 3 2 Device 1 | . 1 . Storage 3 | 1 2 . Processor . | . . . Hackware . | . . . Protection 2 | . . 2 Artifact . | . . . Weapon 5 | 2 . 3 Energy Gun 2 | 1 . 1 Energy Cannon 1 | . . 1 Ballistic Gun 1 | 1 . . Ballistic Cannon 1 | . . 1 Launcher . | . . . Special Weapon . | . . . Impact Weapon . | . . . Slashing Weapon . | . . . Piercing Weapon . | . . . Special Melee Weapon . | . . . Unidentified Prototypes . | . . . Parts Lost 5 | . . 5 Power 1 | . . 1 Propulsion 3 | . . 3 Utility 1 | . . 1 Weapon . | . . . Highest Loss Streak 2 | . . 2 To Critical Strikes 1 | . . 1 Average Backups 8 | 3 5 10 Power . | . 1 . Propulsion 3 | 1 2 4 Utility 2 | . 1 2 Weapon 2 | . 1 2 Tool/Special . | . . . Unused Backups 6 | . . 6 Power . | . . . Propulsion 2 | . . 2 Utility 1 | . . 1 Weapon 2 | . . 2 Tool/Special 1 | . . 1 Average Slot Usage (%) 93 | . 84 98 Engine 14 | . 14 14 Treads 27 | . 27 26 Device 8 | . . 13 Storage 14 | . 14 14 Energy Gun 14 | . 13 15 Ballistic Gun 13 | . 13 12 Peak Build Rating 9 | 6 7 9 Average Rating 7 | 4 5 7 On Entrance 4 | . 6 7 Avg Prop Armor Cover (%) . | . . . Naked Turns . | . . . Heaviest Build 32 | 13 29 32 Greatest Support 40 | 40 40 40 Greatest Overweight (x) 1 | . . 1 Average Overweight (x) . | . . . Largest Inventory Capacity 15 | 8 15 15 Average Capacity 13 | 7 10 15 Most Carried 13 | 6 10 13 Average Carried 8 | 3 5 10 Final Capacity 15 | 8 15 15 Final Carried 12 | 4 8 12 Class Distribution -------------------- 100% | Mutant Dominant Class ---------------- Mutant | -10/Materials Mutant | -10/Subcaves Resources | -11 -10 -10 ----------- Run | Yrd Mat Sub Matter Collected 553 | 205 198 150 Remotely . | . . . Salvage Created 1057 | . 766 291 Parts 43 | . 30 13 Haulers Intercepted 2 | . 2 . Recyclers Shooed 3 | . 3 . Parts Field Recycled . | . . . Retrieved Matter . | . . . Parts Self-Destructed 9 | . . 9 Prevented . | . . . Parts Restored . | . . . Kills | -11 -10 -10 ------- Run | Yrd Mat Sub Combat Hostiles Destroyed 17 | . 8 9 Guns 15 | . 8 7 Cannons 2 | . . 2 Classes Destroyed 11 | . 8 3 Worker 1 | . 1 . Tunneler 1 | . 1 . Hauler 2 | . 2 . Recycler 4 | . 4 . Operator 1 | . 1 . Watcher 2 | . 2 . Swarmer 6 | . 3 3 Grunt 5 | . 5 . Sentry 1 | . . 1 Artisan 1 | . . 1 Subdweller 5 | . . 5 Best Kill Streak 5 | . 5 2 Combat Bots Only 3 | . 3 2 Max Kills in Single Turn 2 | . 1 2 Gunslinging . | . . . Exploded . | . . . Melee . | . . . Uniques/NPCs Destroyed . | . . . Combat | -11 -10 -10 -------- Run | Yrd Mat Sub Hostile Shots Fired 103 | . 48 55 Missed 23 | . 12 11 Hits 80 | . 36 44 Projectile 80 | . 36 44 Critical Strikes 3 | . . 3 Damage Taken 1301 | . 378 923 Core 252 | . 31 221 Absorbed by Shields . | . . . Regen/Repaired (Parts) 229 | . 229 . Core Remaining (%) 100 | 100 . . Volleys Fired 133 | . 83 50 Largest 2 | . 2 2 Hottest 110 | . 70 110 Shots Fired 260 | . 166 94 Gun 243 | . 166 77 Cannon 17 | . . 17 Launcher . | . . . Special . | . . . Kinetic 122 | . 83 39 Thermal 138 | . 83 55 Explosive . | . . . Electromagnetic . | . . . Robot Hit Streak 18 | . 13 18 Robot Miss Streak 4 | . 4 3 Penetration Max . | . . . Secondary Targets 1 | . 1 . Max Gunslinging Chain 1 | . 1 . Shots Hit Robots 168 | . 102 66 Core Hits 50 | . 34 16 Critical Kills . | . . . Critical Parts Destroyed . | . . . Critical Strikes 5 | . 2 3 Burn 3 | . 2 1 Blast 2 | . . 2 Melee Attacks . | . . . Impact . | . . . Slashing . | . . . Piercing . | . . . Sneak Attacks . | . . . Combat Hostiles . | . . . Follow-up Attacks . | . . . Damage Inflicted 1912 | . 1056 856 Guns 1691 | . 1056 635 Cannons 221 | . . 221 Explosions . | . . . Melee . | . . . Ramming . | . . . Kinetic 781 | . 394 387 Thermal 1131 | . 662 469 Explosive . | . . . Electromagnetic . | . . . Impact . | . . . Slashing . | . . . Piercing . | . . . Highest Corruption . | . . . Average Corruption . | . . . Corruption Purged . | . . . Corruption Blocked . | . . . Overload Shots . | . . . Overflow Damage . | . . . Projectiles . | . . . Explosions . | . . . Melee . | . . . Knockbacks 3 | . . 3 Impact . | . . . Kinetic 3 | . . 3 Secondary . | . . . Self-Inflicted Damage . | . . . Shots . | . . . Rammed . | . . . Targets Rammed . | . . . Kicked . | . . . Crushed . | . . . Highest Temperature 259 | . 165 259 Average Temperature 50 | . 48 65 Received Heat Transfer 698 | . 138 560 Siege Activations . | . . . Martial Activations . | . . . Shielding Activations . | . . . Robots Disrupted . | . . . Combat Hostiles . | . . . Robots Corrupted . | . . . Combat Hostiles . | . . . Parts Fried . | . . . Impact Corruptions . | . . . Robots Melted . | . . . Combat Hostiles . | . . . Parts Melted 3 | . 2 1 Heat Transferred 3418 | . 2109 1309 Parts Sabotaged . | . . . Parts Stolen . | . . . Parts Stripped . | . . . Power Chain Reactions . | . . . Alert | -11 -10 -10 ------- Run | Yrd Mat Sub Maximum Alert Level . | . . . Low Security (%) 100 | 100 100 . Level 1 . | . . . Level 2 . | . . . Level 3 . | . . . Level 4 . | . . . Level 5 . | . . . High Security . | . . . Max Security . | . . . Peak Influence 127 | . 127 . Initial . | . . . Average 19 | . 20 . Influence Increases 409 | . 314 95 Destroy 0b10 Robot/C 240 | . 160 80 Destroy 0b10 Robot/NC 55 | . 55 . Destroy Leader 48 | . 48 . Successful Hack 6 | . 6 . Lose Combat Pursuer 60 | . 45 15 Influence Decreases 409 | . 314 95 Time Decay 399 | . 314 85 Lost Part 10 | . . 10 Squads Dispatched 1 | . 1 . Investigation . | . . . Extermination . | . . . Reinforcement 1 | . 1 . Assault . | . . . Garrison . | . . . Intercept . | . . . Searches Triggered . | . . . Construction Impeded . | . . . Haulers Reinforced . | . . . Active Scanning Responses . | . . . Cargo Convoy Interrupts . | . . . Stealth | -11 -10 -10 --------- Run | Yrd Mat Sub Distress Signals . | . . . Communications Jammed . | . . . Distress Signals . | . . . Times Spotted 31 | . 20 11 Peak Tracking Total 3 | . 3 2 Tactical Retreats 4 | . 3 1 Traps | -11 -10 -10 ------- Run | Yrd Mat Sub Traps Triggered 1 | . 1 . Indirectly . | . . . Trap Hack Attempts . | . . . Triggered . | . . . Disarmed . | . . . Reprogrammed . | . . . Reused . | . . . Traps Extracted . | . . . Installed . | . . . Triggered . | . . . Machines | -11 -10 -10 ---------- Run | Yrd Mat Sub Machines Disabled . | . . . Max in Single Turn . | . . . Machines Repaired . | . . . Machines Dismantled . | . . . Machines Sabotaged . | . . . Overloaded Fab Kills . | . . . Hacking | -11 -10 -10 --------- Run | Yrd Mat Sub Machines Accessed 7 | . 7 . Terminals 5 | . 5 . Fabricators . | . . . Repair Stations 1 | . 1 . Recycling Units 1 | . 1 . Scanalyzers . | . . . Garrison Access . | . . . Total Hacks 24 | . 24 . Successful 18 | . 18 . Failed 6 | . 6 . Catastrophic . | . . . Database Lockouts . | . . . Manual 13 | . 13 . Terminals 14 | . 14 . Fabricators . | . . . Repair Stations 7 | . 7 . Recycling Units 3 | . 3 . Scanalyzers . | . . . Garrison Access . | . . . Terminal Hacks 1 | . 1 . Hauler Manifests 1 | . 1 . Fabricator Hacks . | . . . Repair Station Hacks 6 | . 6 . Scan Component 3 | . 3 . Repair 3 | . 3 . Recycling Unit Hacks 1 | . 1 . Retrieve Components 1 | . 1 . Scanalyzer . | . . . Garrison Access Hacks . | . . . Unauthorized Hacks 10 | . 10 . Terminals 10 | . 10 . Botnet 4 | . 4 . Operators 1 | . 1 . Skim 5 | . 5 . Fabricators . | . . . Repair Stations . | . . . Recycling Units . | . . . Scanalyzers . | . . . Garrison Access . | . . . Data Cores Recovered . | . . . Used . | . . . Hacking Detections 4 | . 4 . Full Trace Events . | . . . Feedback Events . | . . . Feedback Blocked . | . . . Robot Schematics Acquired . | . . . Robots Built . | . . . Authchips . | . . . Time . | . . . Total Robot Build Rating . | . . . Part Schematics Acquired . | . . . Parts Built . | . . . Authchips . | . . . Time . | . . . Total Part Build Rating . | . . . Part Studies Acquired . | . . . Parts Repaired 3 | . 3 . Time 78 | . 78 . Parts Recycled . | . . . Recycled Matter . | . . . Retrieved Matter . | . . . Retrieved Components 9 | . 9 . Parts Scanalyzed . | . . . Part Schematics Acquired . | . . . Parts Damaged . | . . . Bothacking | -11 -10 -10 ------------ Run | Yrd Mat Sub Used RIF Installer . | . . . Robots Hacked . | . . . Non-combat . | . . . Combat . | . . . Robot Hacks Applied . | . . . Relay Couplers Released . | . . . Fabnet Peak Effective % . | . . . Robots Rewired . | . . . Allies Hacked . | . . . Hacks Repelled . | . . . Allies | -11 -10 -10 -------- Run | Yrd Mat Sub Total Allies . | . . . Largest Group . | . . . Highest-Rated Group . | . . . Highest-Rated Ally . | . . . Total Orders . | . . . Ally Attacks . | . . . Total Damage . | . . . Kills . | . . . Allies Corrupted . | . . . Allies Melted . | . . . Intel | -11 -10 -10 ------- Run | Yrd Mat Sub Active Infowar (turns) 3049 | . 1 3048 Seismic 3049 | . 1 3048 Robot Analysis Total . | . . . Derelict Logs Recovered 2 | . . 2 Drone Launches . | . . . Drone Recoveries . | . . . Exploration | -11 -10 -10 ------------- Run | Yrd Mat Sub Turns Passed 5207 | 77 1941 3189 Spaces Moved 1766 | 51 686 1029 Core 19 | 19 . . Treads 1746 | 31 686 1029 Legs . | . . . Wheels 1 | 1 . . Hover . | . . . Flight . | . . . Fastest Speed 50 | 50 160 160 Average Speed 162 | 117 160 166 Slowest Speed 240 | 160 160 240 Overloaded Moves . | . . . Propulsion Burnouts . | . . . Robots Hopped . | . . . Potential Cave-ins . | . . . Cave-ins Triggered . | . . . Exploration Rate (%) 48 | 3 90 52 Regions Visited 2 Branch Regions 1 Pre-discovered Areas . | . . . Known Exits Taken . | . . . Unknown Exits Taken 2 | 1 1 . Scrap Searched 3 | . . 3 Spaces Dug . | . . . Terrain Destroyed . | . . . Melee . | . . . Projectile . | . . . AOE . | . . . Terrain Rammed . | . . . Walls Destroyed . | . . . Machines Disabled . | . . . Actions | -11 -10 -10 --------- Run | Yrd Mat Sub Total 3856 | 67 1381 2408 Wait 1903 | 2 593 1308 Move 1764 | 50 685 1029 Hop . | . . . Pick Up 26 | 8 11 7 Fast Attach 2 | 2 . . Attach 14 | 4 7 3 Detach . | . . . Swap 12 | 1 . 11 Drop 2 | . 2 . Fire 133 | . 83 50 Melee . | . . . Ram . | . . . Kick . | . . . Crush . | . . . Escape Stasis . | . . . Rewire . | . . . Trap . | . . . Miscellaneous . | . . . Route ------- -11/Scrapyard -10/Materials (discovered 6 exits: *Mat x3 / [*Min x2] / [*Sub]) -10/Subcaves (discovered 3 exits: [*Mat x2] / Rec) History --------- Turn | Location | Event 11 | -11/Scrapyard | Discovered new exit (range 15) 78 | -11/Scrapyard | Entered Materials 235 | -10/Materials | Discovered new exit (range 13) 307 | -10/Materials | Build established: Mutant 741 | -10/Materials | Discovered new exit (range 12) 794 | -10/Materials | Discovered new exit (range 11) 1048 | -10/Materials | Learned Storage stockpile data 1189 | -10/Materials | Identified exit to Materials 1244 | -10/Materials | Loaded intel: 22 trap records 1287 | -10/Materials | Learned Storage stockpile data 1319 | -10/Materials | Learned location of 1 exit from Recycling 1361 | -10/Materials | Learned 2 Storage zone layouts 1808 | -10/Materials | Repaired Med. Laser 1836 | -10/Materials | Repaired Lgt. Assault Rifle 1864 | -10/Materials | Repaired Lgt. Treads 1991 | -10/Materials | Discovered new exit (range 5) 2019 | -10/Materials | Entered Subcaves 2200 | -10/Subcaves | Learned Materials interactive machine intel 3330 | -10/Subcaves | A swath of the cavern ceiling suddenly collapsed 4366 | -10/Subcaves | Disturbed a concealed Subdweller 4720 | -10/Subcaves | Discovered new exit (range 16) 4939 | -10/Subcaves | Core integrity fell below 50% 5058 | -10/Subcaves | Discovered new exit (range 15) 5091 | -10/Subcaves | Identified exit to Recycling 5207 | -10/Subcaves | Core integrity fell below 20% 5208 | -10/Subcaves | Destroyed by JO-70J(R) with Subdweller Beam Cannon Last Messages --------------- 7M-MWN(R) knocked back. 7M-MWN(R) Sub. Laser blasted off. 7M-MWN(R) destroyed. XY-A0O(R) knocked back. Critical hit (Destroy). Lgt. Treads destroyed. XY-A0O(R) Sub. Optics blasted off. Destroyed Scrap Shield. XY-A0O(R) suffers critical hit (Burn). XY-A0O(R) destroyed. Acquired Sub. Laser. Acquired 10 matter. Acquired 3 matter. Acquired 14 matter. EXIT=FOUND Acquired derelict log, extracted data. Loading 1 Subcaves exit... SH-PYX(u) tweaks Twisted Machinery. Lgt. Treads destroyed. Lgt. Armor Plating destroyed. Map ----- +----------------------------------------------------+ | ?????????????????????????????????????????????????? | | ?????????????????????????????????????????????????? | | ?????????????????????????????????????????????????? | | ?????????????????????????????????????????????????? | | ?????????????????????????????????????????????????? | | ?????????????????????????????????????????????????? | | ?????????????????????????????????????????????????? | | ?????????????????????????????????????????????????? | | ?????????????????????????????????????????????????? | | ?????????????????????????????????????????????????? | | ?????????????????????????????????????????????????? | | ???????????????????????????????? ???????????????? | | ???????????????????????????????? ???????????????? | | ???????????????????????????????? #??????????????? | | ???????????????????????????????? #??????????????? | | ???????????????????????????????? #??????????????? | | ???????????????????????????????? ??????????????? | | ???????????????????????????????? #??????????????? | | ???????????????????????????????# ??????????????? | | ??????????????????????????????? #??????????????? | | ??????????????????????????????? #??????????????? | | ??????????????????????????????? ##?????????????? | | ??????????????????????##??????## #?????????????? | | ?????????????????????## #????## #?????????????? | | ###??????????????????# ##?## ##????????????? | | #####??????????????# @#?#"" #????????????? | | #??????????????## RR###" #????????????? | | ##???????????????## ## #????????????? | | ######?????????????????## #????????????? | | #??????????????????????## ## ##????????????? | | ####???????????????????# #####?????????????? | | #???????????????????### ##???????????????? | | ##??????????????????#### "##??????????????? | | ##???????????????????# ""#??????????????? | | ##????????????????????## < ""#??????????????? | | ???????????????????????# #### ##??????????????? | | #??????????????????????# ### #??????????????? | | #####??????????????????# ### ##??????????????? | | ##?????????????????# ### #???????????????? | | #?????????????????## ## #???????????????? | | #?????????????????# ### #???????????????? | | ## #?????????????????## #######???????????????? | | ?# ##????????????????# #????????????????????? | | ## #????????????????## #????????????????????? | | #????????????????# #????????????????????? | | ##????????????????# ##????????????????????? | | #???????????????## # ##?????????????????????? | | #???????????????# ## #?????????????????????? | | ## ##??????????????# # ##?????????????????????? | | ?## ##?????????????# ## #??????????????????????? | +----------------------------------------------------+ Best States ------------- Heat Dissipation 25 Energy Generation 10 Energy Capacity 250 Matter Stores 300 Matter Capacity 300 Sight Range 16 Terrain Scan Density 10 Armor Coverage 150 Evasion (%) 50 Recoil Reduction 2 Item Schematics ----------------- None Robot Schematics ------------------ None Fabricated ------------ Nothing Repaired ---------- Med. Laser | 30% | -10/Materials Lgt. Assault Rifle | 10% | -10/Materials Lgt. Treads | 22% | -10/Materials Studied --------- None Alien Tech Used ----------------- None Achievements -------------- None Challenges ------------ None Game ------ Seed ChipCatalystBoomstick Manual? 0 Play Time 00:19:25 Cumulative 324.7 hours Start 2025.10.29 @ 13:09:13 End 2025.10.29 @ 13:26:04 Sessions 1 Manual Loads 0 Difficulty Rogue Special Mode None Game No. 245 Rogue 245 Adventurer 0 Explorer 0 Win Type - Total 25 Types 12/1/7/2/1/0/0/1/0/1 Lore% 94 Gallery% 88 Achievement% 59 Wizard Run 0 Options --------- Layout 1 ASCII 0 Keyboard 0 Movement Numpad Keybinds 0 Fullscreen 1 Font 24/Proggy Map View 50x35 Zoom Use 0% Tactical HUD 0 Map Filters NONE Filters NONE Steam 1 RUN: 47e71506-b6c4-4005-8a16-8f64cdb1c96b